[Event "Late-Titled-Tuesday-Blitz-February-06-2024"]
[Site "Chess.com"]
[Date "2024.02.06"]
[Round "6"]
[White "TheAlienParty"]
[Black "xakevicius91"]
[Result "1-0"]
[WhiteElo "2393"]
[BlackElo "2573"]
[TimeControl "180+1"]
[EndTime "15:09:10 PST"]
[Termination "TheAlienParty won by resignation"]

1. e4 {[%clk 0:02:56.4]} 1... c5 {[%clk 0:03:00.2]} 2. Nc3 {[%clk 0:02:55.1]}
2... a6 {[%clk 0:02:58.5]} 3. a4 {[%clk 0:02:54.2]} 3... Nc6 {[%clk 0:02:58.4]}
4. g3 {[%clk 0:02:53.6]} 4... g6 {[%clk 0:02:58.3]} 5. Bg2 {[%clk 0:02:53.5]}
5... Bg7 {[%clk 0:02:58.9]} 6. Nge2 {[%clk 0:02:53.7]} 6... e6 {[%clk
0:02:58.1]} 7. d3 {[%clk 0:02:52.8]} 7... d6 {[%clk 0:02:57.6]} 8. Be3 {[%clk
0:02:52.4]} 8... Rb8 {[%clk 0:02:56.5]} 9. d4 {[%clk 0:02:45.7]} 9... cxd4
{[%clk 0:02:55.6]} 10. Nxd4 {[%clk 0:02:45.6]} 10... Nge7 {[%clk 0:02:55.1]} 11.
O-O {[%clk 0:02:44.6]} 11... O-O {[%clk 0:02:54.3]} 12. Qd2 {[%clk 0:02:43.5]}
12... Qc7 {[%clk 0:02:51.3]} 13. Rad1 {[%clk 0:02:40.4]} 13... Ne5 {[%clk
0:02:49.9]} 14. b3 {[%clk 0:02:38.3]} 14... Rd8 {[%clk 0:02:48]} 15. h3 {[%clk
0:02:36.5]} 15... Bd7 {[%clk 0:02:46.2]} 16. Nce2 {[%clk 0:02:34.6]} 16... Be8
{[%clk 0:02:45.6]} 17. Bh6 {[%clk 0:02:33.1]} 17... Bh8 {[%clk 0:02:45.2]} 18.
f4 {[%clk 0:02:28.6]} 18... N5c6 {[%clk 0:02:45.1]} 19. Nf3 {[%clk 0:02:26.9]}
19... Rbc8 {[%clk 0:02:42.9]} 20. h4 {[%clk 0:02:19.5]} 20... d5 {[%clk
0:02:41.1]} 21. e5 {[%clk 0:02:10.1]} 21... Nf5 {[%clk 0:02:39.3]} 22. Bg5
{[%clk 0:02:09.8]} 22... Qb6+ {[%clk 0:02:34.6]} 23. Kh2 {[%clk 0:02:07.4]}
23... Ne3 {[%clk 0:02:35]} 24. Bxd8 {[%clk 0:02:05.9]} 24... Rxd8 {[%clk
0:02:35.3]} 25. Ned4 {[%clk 0:02:03]} 25... Nxf1+ {[%clk 0:02:33.8]} 26. Bxf1
{[%clk 0:02:02.7]} 26... Bg7 {[%clk 0:02:32.7]} 27. Qe3 {[%clk 0:01:50.8]} 27...
Bf8 {[%clk 0:02:28.1]} 28. c3 {[%clk 0:01:47.4]} 28... Rc8 {[%clk 0:02:27.6]}
29. b4 {[%clk 0:01:44.9]} 29... Nxd4 {[%clk 0:02:27.7]} 30. Nxd4 {[%clk
0:01:41.1]} 30... Bxa4 {[%clk 0:02:27.4]} 31. Rb1 {[%clk 0:01:34.6]} 31... Be8
{[%clk 0:02:26.6]} 32. Be2 {[%clk 0:01:28]} 32... Qc7 {[%clk 0:02:26]} 33. Rb3
{[%clk 0:01:26.4]} 33... Ba4 {[%clk 0:02:23.8]} 34. Ra3 {[%clk 0:01:25.8]} 34...
Be8 {[%clk 0:02:24.3]} 35. h5 {[%clk 0:01:25.5]} 35... Be7 {[%clk 0:02:13]} 36.
hxg6 {[%clk 0:01:24.3]} 36... hxg6 {[%clk 0:02:13.9]} 37. g4 {[%clk 0:01:20.8]}
37... a5 {[%clk 0:02:04.9]} 38. Rxa5 {[%clk 0:01:18.5]} 38... Bd7 {[%clk
0:01:23.1]} 39. Ra3 {[%clk 0:01:16.3]} 39... Qd8 {[%clk 0:01:19.7]} 40. Kg2
{[%clk 0:01:15.1]} 40... Qf8 {[%clk 0:01:16.3]} 41. Bd3 {[%clk 0:01:12.3]} 41...
Qh6 {[%clk 0:01:16]} 42. Ne2 {[%clk 0:01:11]} 42... Qh4 {[%clk 0:01:14.6]} 43.
Qg3 {[%clk 0:01:10.6]} 43... Qxg3+ {[%clk 0:01:12.3]} 44. Kxg3 {[%clk
0:01:09.9]} 44... Kg7 {[%clk 0:01:11.4]} 45. Kf3 {[%clk 0:01:09.3]} 45... g5
{[%clk 0:01:08.5]} 46. Ra7 {[%clk 0:01:07.3]} 46... Bc6 {[%clk 0:01:08.2]} 47.
Nd4 {[%clk 0:01:06]} 47... Bd8 {[%clk 0:01:05.5]} 48. f5 {[%clk 0:00:56.6]}
48... Bb6 {[%clk 0:01:00.3]} 49. Ra3 {[%clk 0:00:54.8]} 49... Bxd4 {[%clk
0:00:59.5]} 50. cxd4 {[%clk 0:00:54.4]} 50... Bd7 {[%clk 0:00:58.8]} 51. f6+
{[%clk 0:00:52.3]} 51... Kg8 {[%clk 0:00:57.7]} 52. Ke3 {[%clk 0:00:51.1]} 52...
Kf8 {[%clk 0:00:56.1]} 53. Kd2 {[%clk 0:00:50.7]} 53... Ke8 {[%clk 0:00:54.1]}
54. b5 {[%clk 0:00:50.4]} 54... Kd8 {[%clk 0:00:51.4]} 55. Ra1 {[%clk
0:00:50.2]} 55... Be8 {[%clk 0:00:50.3]} 56. Rh1 {[%clk 0:00:45.4]} 56... Ra8
{[%clk 0:00:47.5]} 57. Rh5 {[%clk 0:00:43.1]} 57... Ra2+ {[%clk 0:00:47.6]} 58.
Kc1 {[%clk 0:00:41.9]} 58... Ra3 {[%clk 0:00:45.5]} 59. Kc2 {[%clk 0:00:41.1]}
59... Ra2+ {[%clk 0:00:45.9]} 60. Kb3 {[%clk 0:00:41.1]} 60... Rd2 {[%clk
0:00:46.1]} 61. Kc3 {[%clk 0:00:41.1]} 61... Rg2 {[%clk 0:00:39.6]} 62. Rxg5
{[%clk 0:00:41]} 62... Rg3 {[%clk 0:00:40.3]} 63. Kc2 {[%clk 0:00:38.8]} 63...
Rg2+ {[%clk 0:00:39.7]} 64. Kd1 {[%clk 0:00:38.7]} 64... Rg1+ {[%clk 0:00:33]}
65. Ke2 {[%clk 0:00:38.5]} 65... Rg2+ {[%clk 0:00:32.9]} 66. Kf3 {[%clk
0:00:37.9]} 66... Rd2 {[%clk 0:00:32.9]} 67. Ke3 {[%clk 0:00:37.8]} 67... Rg2
{[%clk 0:00:30.9]} 68. Rg8 {[%clk 0:00:37.3]} 68... Rg3+ {[%clk 0:00:30.4]} 69.
Kd2 {[%clk 0:00:37]} 69... b6 {[%clk 0:00:29.1]} 70. g5 {[%clk 0:00:36.2]} 70...
Kd7 {[%clk 0:00:29.7]} 71. Rg7 {[%clk 0:00:29.9]} 71... Kd8 {[%clk 0:00:28.9]}
72. g6 {[%clk 0:00:25.8]} 72... fxg6 {[%clk 0:00:29.1]} 73. f7 {[%clk
0:00:25.6]} 73... Bxf7 {[%clk 0:00:25.8]} 74. Rxf7 {[%clk 0:00:25.7]} 74... g5
{[%clk 0:00:26.4]} 75. Rb7 {[%clk 0:00:24.6]} 75... g4 {[%clk 0:00:25.5]} 76.
Rxb6 {[%clk 0:00:24.8]} 76... Rg2+ {[%clk 0:00:26.4]} 77. Ke3 {[%clk 0:00:24.5]}
77... g3 {[%clk 0:00:27.3]} 78. Rxe6 {[%clk 0:00:18.4]} 78... Rb2 {[%clk
0:00:26.6]} 79. Rg6 {[%clk 0:00:18.4]} 79... g2 {[%clk 0:00:27.1]} 80. b6 {[%clk
0:00:18]} 80... Ke7 {[%clk 0:00:20.8]} 81. Be2 {[%clk 0:00:17.8]} 81... Rxb6
{[%clk 0:00:18.8]} 82. Rxg2 {[%clk 0:00:17.2]} 82... Rb3+ {[%clk 0:00:19.4]} 83.
Bd3 {[%clk 0:00:17.2]} 83... Rb1 {[%clk 0:00:19.3]} 84. Rg7+ {[%clk 0:00:16.9]}
84... Kf8 {[%clk 0:00:19.4]} 85. Rd7 {[%clk 0:00:16.7]} 85... Re1+ {[%clk
0:00:18.6]} 86. Kd2 {[%clk 0:00:16.7]} 86... Rh1 {[%clk 0:00:18.2]} 87. Rxd5
{[%clk 0:00:16.7]} 87... Rh2+ {[%clk 0:00:18.3]} 88. Kc3 {[%clk 0:00:17.2]}
88... Rh3 {[%clk 0:00:18.6]} 89. Kc4 {[%clk 0:00:17.1]} 89... Ke7 {[%clk
0:00:18.6]} 90. Rd6 {[%clk 0:00:17.2]} 90... Ke8 {[%clk 0:00:19]} 91. Bg6+
{[%clk 0:00:16.2]} 91... Ke7 {[%clk 0:00:19.1]} 92. Kd5 {[%clk 0:00:16.2]} 92...
Rh1 {[%clk 0:00:19]} 93. Be4 {[%clk 0:00:15.9]} 93... Rd1 {[%clk 0:00:19]} 94.
Ra6 {[%clk 0:00:15.5]} 94... Rb1 {[%clk 0:00:18.5]} 95. Ra7+ {[%clk 0:00:15.1]}
95... Ke8 {[%clk 0:00:18.4]} 96. Kd6 {[%clk 0:00:14.9]} 96... Rb6+ {[%clk
0:00:17.9]} 97. Bc6+ {[%clk 0:00:14.7]} 97... Kf8 {[%clk 0:00:18.6]} 98. e6
{[%clk 0:00:13.5]} 98... Kg8 {[%clk 0:00:18.3]} 99. e7 {[%clk 0:00:12.7]} 99...
Kg7 {[%clk 0:00:16]} 100. e8=Q+ {[%clk 0:00:12]} 100... Kh6 {[%clk 0:00:16.9]}
101. Qh8+ {[%clk 0:00:11.2]} 101... Kg5 {[%clk 0:00:17.3]} 102. Rg7+ {[%clk
0:00:11.2]} 102... Kf4 {[%clk 0:00:18.2]} 103. Qf8+ {[%clk 0:00:11.5]} 103...
Ke3 {[%clk 0:00:19.1]} 104. Re7+ {[%clk 0:00:11.7]} 104... Kd2 {[%clk 0:00:20]}
105. Qf2+ {[%clk 0:00:12]} 105... Kc3 {[%clk 0:00:20.9]} 106. Re3+ {[%clk
0:00:11.9]} 106... Kb4 {[%clk 0:00:21.8]} 107. Qa2 {[%clk 0:00:11.7]} 107...
Rxc6+ {[%clk 0:00:20.6]} 108. Ke7 {[%clk 0:00:10.4]} 108... Rc7+ {[%clk
0:00:18.2]} 109. Kf8 {[%clk 0:00:10.4]} 109... Rc8+ {[%clk 0:00:18.5]} 110. Re8
{[%clk 0:00:10.3]} 110... Rxe8+ {[%clk 0:00:17.2]} 111. Kxe8 {[%clk 0:00:10.2]}
111... Kc3 {[%clk 0:00:18.1]} 1-0

[Event "Late-Titled-Tuesday-Blitz-February-06-2024"]
[Site "Chess.com"]
[Date "2024.02.06"]
[Round "6"]
[White "Semetey"]
[Black "temus_galaktionov"]
[Result "1/2-1/2"]
[WhiteElo "2631"]
[BlackElo "2868"]
[TimeControl "180+1"]
[EndTime "15:10:11 PST"]
[Termination "Game drawn by repetition"]

1. e4 {[%clk 0:00:58.8]} 1... c6 {[%clk 0:02:59.7]} 2. d3 {[%clk 0:00:58.3]}
2... g6 {[%clk 0:02:59.5]} 3. Nd2 {[%clk 0:00:59]} 3... Bg7 {[%clk 0:02:59.7]}
4. Ngf3 {[%clk 0:00:58.9]} 4... d6 {[%clk 0:03:00.3]} 5. g3 {[%clk 0:00:58.7]}
5... Nd7 {[%clk 0:03:00.8]} 6. Bg2 {[%clk 0:00:59.4]} 6... Ngf6 {[%clk
0:03:01.3]} 7. O-O {[%clk 0:01:00]} 7... O-O {[%clk 0:03:01.9]} 8. c3 {[%clk
0:01:00.4]} 8... e5 {[%clk 0:03:02.2]} 9. Re1 {[%clk 0:01:00.9]} 9... Qc7 {[%clk
0:03:02.5]} 10. d4 {[%clk 0:01:01.4]} 10... Re8 {[%clk 0:03:02.4]} 11. dxe5
{[%clk 0:01:00.5]} 11... Nxe5 {[%clk 0:03:02.1]} 12. Nxe5 {[%clk 0:00:59.3]}
12... dxe5 {[%clk 0:03:03]} 13. Nc4 {[%clk 0:00:58]} 13... Rd8 {[%clk
0:03:01.3]} 14. Qe2 {[%clk 0:00:58.2]} 14... b6 {[%clk 0:03:01.5]} 15. a4 {[%clk
0:00:58]} 15... Ba6 {[%clk 0:03:00.9]} 16. b3 {[%clk 0:00:57.6]} 16... Ne8
{[%clk 0:02:52]} 17. Ba3 {[%clk 0:00:54.2]} 17... c5 {[%clk 0:02:48.9]} 18. Bf1
{[%clk 0:00:52.1]} 18... Nd6 {[%clk 0:02:47.8]} 19. Qf3 {[%clk 0:00:49.4]} 19...
Nxc4 {[%clk 0:02:46]} 20. Bxc4 {[%clk 0:00:47.3]} 20... Bxc4 {[%clk 0:02:44.6]}
21. bxc4 {[%clk 0:00:48.2]} 21... Rd2 {[%clk 0:02:34.5]} 22. Bc1 {[%clk
0:00:47.6]} 22... Rd6 {[%clk 0:02:30.4]} 23. Ba3 {[%clk 0:00:32.2]} 23... Rad8
{[%clk 0:02:27.4]} 24. Rad1 {[%clk 0:00:32.1]} 24... Qd7 {[%clk 0:02:23.9]} 25.
Rxd6 {[%clk 0:00:29.6]} 25... Qxd6 {[%clk 0:02:24.8]} 26. Bc1 {[%clk 0:00:28.5]}
26... h6 {[%clk 0:02:14.1]} 27. Be3 {[%clk 0:00:20.9]} 27... Qd3 {[%clk
0:02:13.3]} 28. a5 {[%clk 0:00:20.5]} 28... Qxc3 {[%clk 0:02:05.4]} 29. Rd1
{[%clk 0:00:20.7]} 29... Rxd1+ {[%clk 0:01:57.7]} 30. Qxd1 {[%clk 0:00:21.6]}
30... Qxc4 {[%clk 0:01:55]} 31. Qd8+ {[%clk 0:00:20.5]} 31... Kh7 {[%clk
0:01:54.8]} 32. axb6 {[%clk 0:00:20.8]} 32... axb6 {[%clk 0:01:54.7]} 33. Qxb6
{[%clk 0:00:21]} 33... Bf8 {[%clk 0:01:41.4]} 34. Qd8 {[%clk 0:00:17.3]} 34...
Bg7 {[%clk 0:01:41.3]} 35. Qc7 {[%clk 0:00:16.8]} 35... Qxe4 {[%clk 0:01:39.4]}
36. Qxc5 {[%clk 0:00:16.6]} 36... h5 {[%clk 0:01:36.7]} 37. h4 {[%clk
0:00:15.2]} 37... Qf3 {[%clk 0:01:31.9]} 38. Qe7 {[%clk 0:00:14]} 38... Qd5
{[%clk 0:01:25]} 39. Bg5 {[%clk 0:00:13.6]} 39... Qf3 {[%clk 0:01:16.9]} 40. Qe8
{[%clk 0:00:12]} 40... Qf5 {[%clk 0:01:13.7]} 41. Qe7 {[%clk 0:00:11.5]} 41...
e4 {[%clk 0:01:09.9]} 42. Be3 {[%clk 0:00:10.9]} 42... Be5 {[%clk 0:01:07.5]}
43. Qg5 {[%clk 0:00:10.8]} 43... Qe6 {[%clk 0:01:01.5]} 44. Qd8 {[%clk
0:00:10.4]} 44... Bf6 {[%clk 0:00:59.3]} 45. Qf8 {[%clk 0:00:10.2]} 45... Bg7
{[%clk 0:00:56]} 46. Qd8 {[%clk 0:00:10.2]} 46... Qe5 {[%clk 0:00:54.6]} 47. Qd7
{[%clk 0:00:09.7]} 47... Qa1+ {[%clk 0:00:52.4]} 48. Kg2 {[%clk 0:00:08.8]}
48... Qf6 {[%clk 0:00:53.3]} 49. Qe8 {[%clk 0:00:08.8]} 49... Qf3+ {[%clk
0:00:50.9]} 50. Kg1 {[%clk 0:00:08.8]} 50... Bc3 {[%clk 0:00:47.3]} 51. Qe7
{[%clk 0:00:08.8]} 51... Qf5 {[%clk 0:00:44.4]} 52. Qf8 {[%clk 0:00:08.9]} 52...
Be5 {[%clk 0:00:40.5]} 53. Qh6+ {[%clk 0:00:09]} 53... Kg8 {[%clk 0:00:40.5]}
54. Qg5 {[%clk 0:00:09.1]} 54... Qxg5 {[%clk 0:00:40.4]} 55. Bxg5 {[%clk
0:00:09.1]} 55... f6 {[%clk 0:00:39.6]} 56. Be3 {[%clk 0:00:08.2]} 56... Kf7
{[%clk 0:00:39]} 57. Kf1 {[%clk 0:00:08.5]} 57... Ke6 {[%clk 0:00:38.8]} 58. Ke2
{[%clk 0:00:08.9]} 58... Kf5 {[%clk 0:00:36.1]} 59. Kf1 {[%clk 0:00:08.7]} 59...
Kg4 {[%clk 0:00:35.4]} 60. Kg2 {[%clk 0:00:09.2]} 60... g5 {[%clk 0:00:32.8]}
61. hxg5 {[%clk 0:00:10.1]} 61... fxg5 {[%clk 0:00:33.7]} 62. Bc5 {[%clk
0:00:09.9]} 62... h4 {[%clk 0:00:33.8]} 63. gxh4 {[%clk 0:00:10.8]} 63... gxh4
{[%clk 0:00:34.7]} 64. Be3 {[%clk 0:00:06.3]} 64... h3+ {[%clk 0:00:35]} 65. Kg1
{[%clk 0:00:05.3]} 65... Kf3 {[%clk 0:00:34.1]} 66. Bb6 {[%clk 0:00:05.1]} 66...
Bf4 {[%clk 0:00:32.2]} 67. Bc5 {[%clk 0:00:04.4]} 67... Bg5 {[%clk 0:00:29.6]}
68. Bb6 {[%clk 0:00:04.7]} 68... Bh4 {[%clk 0:00:27]} 69. Bc7 {[%clk 0:00:01.6]}
69... Bxf2+ {[%clk 0:00:26.3]} 70. Kh2 {[%clk 0:00:02.5]} 70... Kg4 {[%clk
0:00:26.1]} 71. Ba5 {[%clk 0:00:01.4]} 71... Be3 {[%clk 0:00:23.2]} 72. Kh1
{[%clk 0:00:02.3]} 72... Kf3 {[%clk 0:00:18.6]} 73. Bb4 {[%clk 0:00:02.8]} 73...
Ke2 {[%clk 0:00:17.4]} 74. Ba5 {[%clk 0:00:03]} 74... Bd4 {[%clk 0:00:17.1]} 75.
Bd8 {[%clk 0:00:02]} 75... Kf3 {[%clk 0:00:17.1]} 76. Bg5 {[%clk 0:00:02]} 76...
Be3 {[%clk 0:00:17.6]} 77. Bd8 {[%clk 0:00:01.9]} 77... Bf2 {[%clk 0:00:17.3]}
78. Bc7 {[%clk 0:00:02.2]} 78... e3 {[%clk 0:00:17.2]} 79. Ba5 {[%clk
0:00:02.8]} 79... e2 {[%clk 0:00:17.4]} 80. Bb4 {[%clk 0:00:03.1]} 80... Bg3
{[%clk 0:00:15.4]} 81. Ba5 {[%clk 0:00:03.4]} 81... Ke4 {[%clk 0:00:15.7]} 82.
Bb4 {[%clk 0:00:03.6]} 82... Kd3 {[%clk 0:00:16]} 83. Ba5 {[%clk 0:00:03.9]}
83... Kc2 {[%clk 0:00:16.5]} 84. Bb4 {[%clk 0:00:04.1]} 84... Kd1 {[%clk
0:00:16.6]} 85. Ba5 {[%clk 0:00:04.3]} 85... Be1 {[%clk 0:00:16.7]} 86. Bd8
{[%clk 0:00:03.8]} 86... Bd2 {[%clk 0:00:16.7]} 87. Bh4 {[%clk 0:00:04.3]} 87...
Bf4 {[%clk 0:00:17.1]} 88. Kg1 {[%clk 0:00:03.2]} 88... Kd2 {[%clk 0:00:17.6]}
89. Kh1 {[%clk 0:00:03.4]} 89... Ke3 {[%clk 0:00:17.8]} 90. Be1 {[%clk
0:00:03.6]} 90... Kf3 {[%clk 0:00:18]} 91. Kg1 {[%clk 0:00:04.1]} 91... Ke3
{[%clk 0:00:15.3]} 92. Kh1 {[%clk 0:00:04.5]} 92... Kf3 {[%clk 0:00:14.3]} 93.
Kg1 {[%clk 0:00:05.1]} 93... Be3+ {[%clk 0:00:13.6]} 94. Kh2 {[%clk 0:00:04.8]}
94... Kg4 {[%clk 0:00:13.5]} 95. Kh1 {[%clk 0:00:04.8]} 95... Bf4 {[%clk
0:00:13.5]} 96. Kg1 {[%clk 0:00:04.9]} 96... Kf3 {[%clk 0:00:13.4]} 97. Kh1
{[%clk 0:00:05]} 97... h2 {[%clk 0:00:13.4]} 98. Bc3 {[%clk 0:00:04.2]} 98...
Ke3 {[%clk 0:00:13]} 99. Be1 {[%clk 0:00:04.2]} 99... Kd3 {[%clk 0:00:13.2]}
100. Kg2 {[%clk 0:00:04.7]} 100... Kc2 {[%clk 0:00:13.5]} 101. Kh1 {[%clk
0:00:04.1]} 101... Kd1 {[%clk 0:00:13.8]} 102. Bh4 {[%clk 0:00:04.2]} 102... Kd2
{[%clk 0:00:14.2]} 103. Kg2 {[%clk 0:00:04.4]} 103... Bd6 {[%clk 0:00:12.4]}
104. Kh1 {[%clk 0:00:04]} 104... Ke3 {[%clk 0:00:12.5]} 105. Kg2 {[%clk
0:00:04.2]} 105... Ke4 {[%clk 0:00:11.5]} 106. Be1 {[%clk 0:00:04.1]} 106... Kd3
{[%clk 0:00:11.7]} 107. Kh1 {[%clk 0:00:04.6]} 107... Ke3 {[%clk 0:00:12.1]}
108. Kg2 {[%clk 0:00:05.3]} 108... Be5 {[%clk 0:00:11.7]} 109. Kh1 {[%clk
0:00:05.9]} 109... Kf3 {[%clk 0:00:11.7]} 110. Bd2 {[%clk 0:00:04.6]} 110... Bg3
{[%clk 0:00:10.3]} 111. Bc3 {[%clk 0:00:04.5]} 111... Ke4 {[%clk 0:00:09.9]}
112. Bd2 {[%clk 0:00:04.3]} 112... Kd3 {[%clk 0:00:10.3]} 113. Ba5 {[%clk
0:00:04.4]} 113... Kc2 {[%clk 0:00:10.7]} 114. Kg2 {[%clk 0:00:04.9]} 114... Kd1
{[%clk 0:00:10.8]} 115. Bb4 {[%clk 0:00:05]} 115... Be1 {[%clk 0:00:10.9]} 116.
Bd6 {[%clk 0:00:04.8]} 116... Bc3 {[%clk 0:00:09.1]} 117. Bg3 {[%clk 0:00:04.8]}
117... Be5 {[%clk 0:00:08.6]} 118. Bh4 {[%clk 0:00:05.1]} 118... Kd2 {[%clk
0:00:08.8]} 119. Kh1 {[%clk 0:00:05.2]} 119... Ke3 {[%clk 0:00:09]} 120. Kg2
{[%clk 0:00:05.5]} 120... Ke4 {[%clk 0:00:09]} 121. Kh1 {[%clk 0:00:05.2]}
121... Kf3 {[%clk 0:00:08.3]} 122. Be1 {[%clk 0:00:04.6]} 122... Bf4 {[%clk
0:00:08.6]} 123. Bc3 {[%clk 0:00:03.1]} 123... Ke4 {[%clk 0:00:06.9]} 124. Be1
{[%clk 0:00:03.1]} 124... Kd3 {[%clk 0:00:07.3]} 125. Kg2 {[%clk 0:00:03.4]}
125... Ke3 {[%clk 0:00:07.3]} 126. Bh4 {[%clk 0:00:03.9]} 126... Ke4 {[%clk
0:00:07.1]} 127. Bf2 {[%clk 0:00:04.1]} 127... Kd3 {[%clk 0:00:07.2]} 128. Be1
{[%clk 0:00:04.5]} 1/2-1/2

[Event "Late-Titled-Tuesday-Blitz-February-06-2024"]
[Site "Chess.com"]
[Date "2024.02.06"]
[Round "7"]
[White "gurudub"]
[Black "egnfanclub"]
[Result "0-1"]
[WhiteElo "2111"]
[BlackElo "2360"]
[TimeControl "180+1"]
[EndTime "15:12:56 PST"]
[Termination "egnfanclub won by resignation"]

1. e4 {[%clk 0:03:00.9]} 1... e5 {[%clk 0:02:59.6]} 2. Nf3 {[%clk 0:03:00.8]}
2... Nc6 {[%clk 0:02:59.9]} 3. Bb5 {[%clk 0:03:01.5]} 3... a6 {[%clk 0:03:00]}
4. Ba4 {[%clk 0:03:02.1]} 4... d6 {[%clk 0:03:00]} 5. O-O {[%clk 0:03:02.2]}
5... Bg4 {[%clk 0:02:59.5]} 6. h3 {[%clk 0:02:58.5]} 6... h5 {[%clk 0:02:58.9]}
7. d3 {[%clk 0:02:46.3]} 7... Qf6 {[%clk 0:02:58.4]} 8. Nbd2 {[%clk 0:02:46.3]}
8... Ne7 {[%clk 0:02:57.8]} 9. c3 {[%clk 0:02:43.2]} 9... Ng6 {[%clk 0:02:57.6]}
10. Re1 {[%clk 0:02:39.7]} 10... Nf4 {[%clk 0:02:57]} 11. hxg4 {[%clk
0:02:31.4]} 11... hxg4 {[%clk 0:02:54.4]} 12. Nh2 {[%clk 0:02:31.4]} 12... Nxg2
{[%clk 0:02:33.8]} 13. Kxg2 {[%clk 0:02:18.9]} 13... Rxh2+ {[%clk 0:02:32.8]}
14. Kxh2 {[%clk 0:02:05.7]} 14... Qxf2+ {[%clk 0:02:32.4]} 15. Kh1 {[%clk
0:02:05.3]} 15... g3 {[%clk 0:02:31.4]} 0-1

[Event "Late-Titled-Tuesday-Blitz-February-06-2024"]
[Site "Chess.com"]
[Date "2024.02.06"]
[Round "7"]
[White "karinachess1"]
[Black "spaski2004"]
[Result "1-0"]
[WhiteElo "2684"]
[BlackElo "2923"]
[TimeControl "180+1"]
[EndTime "15:13:36 PST"]
[Termination "karinachess1 won by resignation"]

1. d4 {[%clk 0:03:00.9]} 1... d6 {[%clk 0:02:39.4]} 2. Nf3 {[%clk 0:03:00.3]}
2... Bg4 {[%clk 0:02:39.2]} 3. c4 {[%clk 0:02:59.4]} 3... c6 {[%clk 0:02:38.2]}
4. e4 {[%clk 0:02:51.8]} 4... g6 {[%clk 0:02:33.6]} 5. Be2 {[%clk 0:02:51.3]}
5... Bg7 {[%clk 0:02:31.8]} 6. Nc3 {[%clk 0:02:51.2]} 6... c5 {[%clk 0:02:29.1]}
7. Be3 {[%clk 0:02:45.4]} 7... Nc6 {[%clk 0:02:21.7]} 8. dxc5 {[%clk 0:02:42.2]}
8... Bxf3 {[%clk 0:02:19.8]} 9. Bxf3 {[%clk 0:02:41]} 9... Bxc3+ {[%clk
0:02:19.3]} 10. bxc3 {[%clk 0:02:40.9]} 10... Qa5 {[%clk 0:02:16.9]} 11. cxd6
{[%clk 0:02:33.7]} 11... Qxc3+ {[%clk 0:02:15.7]} 12. Bd2 {[%clk 0:02:21.3]}
12... Qxc4 {[%clk 0:02:15]} 13. d7+ {[%clk 0:02:11.3]} 13... Kf8 {[%clk
0:02:00.5]} 14. Rc1 {[%clk 0:02:08.6]} 14... Qd3 {[%clk 0:01:30.8]} 15. Bh6+
{[%clk 0:02:05.5]} 1-0

[Event "Late-Titled-Tuesday-Blitz-February-06-2024"]
[Site "Chess.com"]
[Date "2024.02.06"]
[Round "7"]
[White "GlavkonVVS"]
[Black "Attacker_2006"]
[Result "1/2-1/2"]
[WhiteElo "2620"]
[BlackElo "2495"]
[TimeControl "180+1"]
[EndTime "15:13:50 PST"]
[Termination "Game drawn by repetition"]

1. c4 {[%clk 0:03:00.9]} 1... e6 {[%clk 0:02:58.8]} 2. Nf3 {[%clk 0:03:00.2]}
2... Nf6 {[%clk 0:02:59.4]} 3. d4 {[%clk 0:02:59.8]} 3... d5 {[%clk 0:02:59.8]}
4. Nc3 {[%clk 0:03:00.1]} 4... Nbd7 {[%clk 0:02:56.8]} 5. Bg5 {[%clk 0:03:00]}
5... Bb4 {[%clk 0:02:54.1]} 6. e3 {[%clk 0:02:59.8]} 6... c5 {[%clk 0:02:48.8]}
7. cxd5 {[%clk 0:02:54.1]} 7... exd5 {[%clk 0:02:44.8]} 8. a3 {[%clk 0:02:50]}
8... Bxc3+ {[%clk 0:02:43.9]} 9. bxc3 {[%clk 0:02:49.6]} 9... Qa5 {[%clk
0:02:42.5]} 10. Be2 {[%clk 0:02:29.4]} 10... Qxc3+ {[%clk 0:02:39.3]} 11. Kf1
{[%clk 0:02:29.6]} 11... O-O {[%clk 0:02:29.4]} 12. Rc1 {[%clk 0:02:27.9]} 12...
Qxa3 {[%clk 0:02:22.5]} 13. dxc5 {[%clk 0:02:28.2]} 13... Ne4 {[%clk 0:02:07]}
14. Be7 {[%clk 0:02:17.4]} 14... Re8 {[%clk 0:01:56.4]} 15. Ra1 {[%clk
0:01:47.5]} 15... Qc3 {[%clk 0:01:46.3]} 16. Rc1 {[%clk 0:01:45.5]} 16... Qa3
{[%clk 0:01:44.7]} 17. Ra1 {[%clk 0:01:44.9]} 17... Qc3 {[%clk 0:01:44.3]} 18.
Rc1 {[%clk 0:01:42.1]} 18... Qa3 {[%clk 0:01:43.5]} 1/2-1/2

[Event "Late-Titled-Tuesday-Blitz-February-06-2024"]
[Site "Chess.com"]
[Date "2024.02.06"]
[Round "7"]
[White "Squirlolz"]
[Black "cukricek"]
[Result "0-1"]
[WhiteElo "2561"]
[BlackElo "2418"]
[TimeControl "180+1"]
[EndTime "15:13:58 PST"]
[Termination "cukricek won by resignation"]

1. e4 {[%clk 0:02:58.6]} 1... c5 {[%clk 0:02:59.5]} 2. Nf3 {[%clk 0:02:57.6]}
2... g6 {[%clk 0:02:54.6]} 3. h4 {[%clk 0:02:57.1]} 3... Nc6 {[%clk 0:02:53.7]}
4. h5 {[%clk 0:02:57.2]} 4... Bg7 {[%clk 0:02:46.9]} 5. Bb5 {[%clk 0:02:57.1]}
5... Nd4 {[%clk 0:02:46.2]} 6. Bc4 {[%clk 0:02:47.9]} 6... e6 {[%clk 0:02:45.8]}
7. c3 {[%clk 0:02:47.2]} 7... Nxf3+ {[%clk 0:02:45.2]} 8. Qxf3 {[%clk
0:02:48.1]} 8... Ne7 {[%clk 0:02:39.2]} 9. h6 {[%clk 0:02:33.5]} 9... Be5 {[%clk
0:02:38.4]} 10. d4 {[%clk 0:02:33]} 10... cxd4 {[%clk 0:02:37.9]} 11. cxd4
{[%clk 0:02:27.3]} 11... Bxd4 {[%clk 0:02:37.8]} 12. Be3 {[%clk 0:02:27.4]}
12... Nc6 {[%clk 0:02:38.2]} 13. Nc3 {[%clk 0:02:22.7]} 13... Ne5 {[%clk
0:02:31.5]} 14. Qg3 {[%clk 0:02:09.9]} 14... Qb6 {[%clk 0:02:15.1]} 15. O-O-O
{[%clk 0:02:02.7]} 15... Bxe3+ {[%clk 0:02:03.6]} 16. fxe3 {[%clk 0:02:03.6]}
16... Nxc4 {[%clk 0:02:03.6]} 17. Rd4 {[%clk 0:02:02.7]} 17... Qxb2+ {[%clk
0:02:01.4]} 18. Kd1 {[%clk 0:02:02.9]} 18... Qxc3 {[%clk 0:02:00.4]} 19. Rxc4
{[%clk 0:02:02.8]} 19... Qxc4 {[%clk 0:01:48.9]} 20. Qe5 {[%clk 0:02:02.5]}
20... Rg8 {[%clk 0:01:45.7]} 21. Qg7 {[%clk 0:01:51.7]} 21... Rxg7 {[%clk
0:01:39.6]} 22. hxg7 {[%clk 0:01:51.8]} 22... Qd3+ {[%clk 0:01:40.2]} 23. Ke1
{[%clk 0:01:49.7]} 23... Qc3+ {[%clk 0:01:40.9]} 24. Kf2 {[%clk 0:01:50.2]}
24... Qxg7 {[%clk 0:01:41.8]} 0-1